Workbook

Sheet Rankings
C1: Shanghai ranking | F1: Linear ranking with one's own weights | I1: Warsaw ranking with one's own weights | L1: Warsaw ranking with base object weights
B2: Alumni | C2: 10 | F2: 0 | I2: 1.793357745 | L2: =Work!B7 -> 15.3766495
B3: Award | C3: 20 | F3: 0 | I3: 2.572856993 | L3: =Work!C7 -> 16.15597287
B4: HiCi | C4: 20 | F4: 0 | I4: 1.467821169 | L4: =Work!D7 -> 15.87742161
B5: N&S | C5: 20 | F5: 0 | I5: 2.012545914 | L5: =Work!E7 -> 18.87930314
B6: PUB | C6: 20 | F6: 0 | I6: 1.588852038 | L6: =Work!F7 -> 20.7200352 | M6: Base object, ordinal no as in Data sheet
B7: PCP | C7: 10 | F7: 100 | I7: 90.56456614 | L7: =Work!G7 -> 12.99061768 | M7: 11
B8: Sum of weights | C8: =SUM(C2:C7) -> 100 | D8: Sum of weights | F8: =SUM(F2:F7) -> 100 | G8: Sum of weights | I8: 100 | J8: Sum of weights | L8: 100
E9: position in ranking | G9: value | H9: position in ranking | J9: value | K9: position in ranking | M9: value | N9: position in ranking
C10: Harvard University | E10: 1 | F10: California Institute of Technology | G10: =$F$2*Data!H11+$F$3*Data!I11+$F$4*Data!J11+$F$5*Data!K11+$F$6*Data!L11+$F$7*Data!M11 -> 10000 | H10: 1 | I10: California Institute of Technology | J10: =MAX(Rankings!$I$2*(101-Data!H11),Rankings!$I$3*(101-Data!I11),Rankings!$I$4*(101-Data!J11),Rankings!$I$5*(101-Data!K11),Rankings!$I$6*(101-Data!L11),Rankings!$I$7*(101-Data!M11)) -> 90.56456614 | K10: 1 | L10: Harvard University | M10: =MAX(Rankings!$L$2*(101-Data!H3),Rankings!$L$3*(101-Data!I3),Rankings!$L$4*(101-Data!J3),Rankings!$L$5*(101-Data!K3),Rankings!$L$6*(101-Data!L3),Rankings!$L$7*(101-Data!M3)) -> 279.2982801 | N10: 1
C11: Stanford University | E11: 2 | F11: Harvard University | G11: =$F$2*Data!H3+$F$3*Data!I3+$F$4*Data!J3+$F$5*Data!K3+$F$6*Data!L3+$F$7*Data!M3 -> 7950 | H11: 2 | I11: Harvard University | J11: =MAX(Rankings!$I$2*(101-Data!H3),Rankings!$I$3*(101-Data!I3),Rankings!$I$4*(101-Data!J3),Rankings!$I$5*(101-Data!K3),Rankings!$I$6*(101-Data!L3),Rankings!$I$7*(101-Data!M3)) -> 1947.138172 | K11: 2 | L11: Massachusetts Institute of Technology (MIT) | M11: =MAX(Rankings!$L$2*(101-Data!H7),Rankings!$L$3*(101-Data!I7),Rankings!$L$4*(101-Data!J7),Rankings!$L$5*(101-Data!K7),Rankings!$L$6*(101-Data!L7),Rankings!$L$7*(101-Data!M7)) -> 710.6972074 | N11: 2
C12: University of Cambridge | E12: 3 | F12: Princeton University | G12: =$F$2*Data!H8+$F$3*Data!I8+$F$4*Data!J8+$F$5*Data!K8+$F$6*Data!L8+$F$7*Data!M8 -> 7350 | H12: 3 | I12: Princeton University | J12: =MAX(Rankings!$I$2*(101-Data!H8),Rankings!$I$3*(101-Data!I8),Rankings!$I$4*(101-Data!J8),Rankings!$I$5*(101-Data!K8),Rankings!$I$6*(101-Data!L8),Rankings!$I$7*(101-Data!M8)) -> 2490.525569 | K12: 3 | L12: University of Cambridge | M12: =MAX(Rankings!$L$2*(101-Data!H6),Rankings!$L$3*(101-Data!I6),Rankings!$L$4*(101-Data!J6),Rankings!$L$5*(101-Data!K6),Rankings!$L$6*(101-Data!L6),Rankings!$L$7*(101-Data!M6)) -> 777.00132 | N12: 3
C13: Massachusetts Institute of Technology (MIT) | E13: 4 | F13: Massachusetts Institute of Technology (MIT) | G13: =$F$2*Data!H6+$F$3*Data!I6+$F$4*Data!J6+$F$5*Data!K6+$F$6*Data!L6+$F$7*Data!M6 -> 7080 | H13: 4 | I13: Massachusetts Institute of Technology (MIT) | J13: =MAX(Rankings!$I$2*(101-Data!H6),Rankings!$I$3*(101-Data!I6),Rankings!$I$4*(101-Data!J6),Rankings!$I$5*(101-Data!K6),Rankings!$I$6*(101-Data!L6),Rankings!$I$7*(101-Data!M6)) -> 2735.049897 | K13: 4 | L13: Stanford University | M13: =MAX(Rankings!$L$2*(101-Data!H5),Rankings!$L$3*(101-Data!I5),Rankings!$L$4*(101-Data!J5),Rankings!$L$5*(101-Data!K5),Rankings!$L$6*(101-Data!L5),Rankings!$L$7*(101-Data!M5)) -> 825.0255474 | N13: 4
C14: University of California, Berkeley | E14: 5 | F14: University of Cambridge | G14: =$F$2*Data!H5+$F$3*Data!I5+$F$4*Data!J5+$F$5*Data!K5+$F$6*Data!L5+$F$7*Data!M5 -> 5910 | H14: 5 | I14: University of Cambridge | J14: =MAX(Rankings!$I$2*(101-Data!H5),Rankings!$I$3*(101-Data!I5),Rankings!$I$4*(101-Data!J5),Rankings!$I$5*(101-Data!K5),Rankings!$I$6*(101-Data!L5),Rankings!$I$7*(101-Data!M5)) -> 3794.655321 | K14: 5 | L14: University of Chicago | M14: =MAX(Rankings!$L$2*(101-Data!H13),Rankings!$L$3*(101-Data!I13),Rankings!$L$4*(101-Data!J13),Rankings!$L$5*(101-Data!K13),Rankings!$L$6*(101-Data!L13),Rankings!$L$7*(101-Data!M13)) -> 828.801408 | N14: 5
C15: Princeton University | E15: 6 | F15: University of California, Berkeley | G15: =$F$2*Data!H7+$F$3*Data!I7+$F$4*Data!J7+$F$5*Data!K7+$F$6*Data!L7+$F$7*Data!M7 -> 5870 | H15: 6 | I15: University of California, Berkeley | J15: =MAX(Rankings!$I$2*(101-Data!H7),Rankings!$I$3*(101-Data!I7),Rankings!$I$4*(101-Data!J7),Rankings!$I$5*(101-Data!K7),Rankings!$I$6*(101-Data!L7),Rankings!$I$7*(101-Data!M7)) -> 3830.881148 | K15: 6 | L15: Yale University | M15: =MAX(Rankings!$L$2*(101-Data!H4),Rankings!$L$3*(101-Data!I4),Rankings!$L$4*(101-Data!J4),Rankings!$L$5*(101-Data!K4),Rankings!$L$6*(101-Data!L4),Rankings!$L$7*(101-Data!M4)) -> 868.7806967 | N15: 6
C16: University of Oxford | E16: 7 | F16: Stanford University | G16: =$F$2*Data!H4+$F$3*Data!I4+$F$4*Data!J4+$F$5*Data!K4+$F$6*Data!L4+$F$7*Data!M4 -> 5680 | H16: 7 | I16: Stanford University | J16: =MAX(Rankings!$I$2*(101-Data!H4),Rankings!$I$3*(101-Data!I4),Rankings!$I$4*(101-Data!J4),Rankings!$I$5*(101-Data!K4),Rankings!$I$6*(101-Data!L4),Rankings!$I$7*(101-Data!M4)) -> 4002.953823 | K16: 7 | L16: University of California, Berkeley | M16: =MAX(Rankings!$L$2*(101-Data!H10),Rankings!$L$3*(101-Data!I10),Rankings!$L$4*(101-Data!J10),Rankings!$L$5*(101-Data!K10),Rankings!$L$6*(101-Data!L10),Rankings!$L$7*(101-Data!M10)) -> 891.1031084 | N16: 7
C17: Columbia University | E17: 8 | F17: Swiss Federal Institute of Technology Zurich | G17: =$F$2*Data!H21+$F$3*Data!I21+$F$4*Data!J21+$F$5*Data!K21+$F$6*Data!L21+$F$7*Data!M21 -> 4740 | H17: 8 | I17: Swiss Federal Institute of Technology Zurich | J17: =MAX(Rankings!$I$2*(101-Data!H21),Rankings!$I$3*(101-Data!I21),Rankings!$I$4*(101-Data!J21),Rankings!$I$5*(101-Data!K21),Rankings!$I$6*(101-Data!L21),Rankings!$I$7*(101-Data!M21)) -> 4854.260745 | K17: 8 | L17: Columbia University | M17: =MAX(Rankings!$L$2*(101-Data!H9),Rankings!$L$3*(101-Data!I9),Rankings!$L$4*(101-Data!J9),Rankings!$L$5*(101-Data!K9),Rankings!$L$6*(101-Data!L9),Rankings!$L$7*(101-Data!M9)) -> 915.6462025 | N17: 8
C18: California Institute of Technology | E18: 9 | F18: University of Oxford | G18: =$F$2*Data!H9+$F$3*Data!I9+$F$4*Data!J9+$F$5*Data!K9+$F$6*Data!L9+$F$7*Data!M9 -> 4720 | H18: 9 | I18: University of Oxford | J18: =MAX(Rankings!$I$2*(101-Data!H9),Rankings!$I$3*(101-Data!I9),Rankings!$I$4*(101-Data!J9),Rankings!$I$5*(101-Data!K9),Rankings!$I$6*(101-Data!L9),Rankings!$I$7*(101-Data!M9)) -> 4872.373658 | K18: 9 | L18: University of California, Los Angeles | M18: =MAX(Rankings!$L$2*(101-Data!H16),Rankings!$L$3*(101-Data!I16),Rankings!$L$4*(101-Data!J16),Rankings!$L$5*(101-Data!K16),Rankings!$L$6*(101-Data!L16),Rankings!$L$7*(101-Data!M16)) -> 1036.473743 | N18: 9
C19: University of Chicago | E19: 10 | F19: University of Chicago | G19: =$F$2*Data!H12+$F$3*Data!I12+$F$4*Data!J12+$F$5*Data!K12+$F$6*Data!L12+$F$7*Data!M12 -> 4310 | H19: 10 | I19: University of Chicago | J19: =MAX(Rankings!$I$2*(101-Data!H12),Rankings!$I$3*(101-Data!I12),Rankings!$I$4*(101-Data!J12),Rankings!$I$5*(101-Data!K12),Rankings!$I$6*(101-Data!L12),Rankings!$I$7*(101-Data!M12)) -> 5243.68838 | K19: 10 | L19: University of Washington | M19: =MAX(Rankings!$L$2*(101-Data!H20),Rankings!$L$3*(101-Data!I20),Rankings!$L$4*(101-Data!J20),Rankings!$L$5*(101-Data!K20),Rankings!$L$6*(101-Data!L20),Rankings!$L$7*(101-Data!M20)) -> 1098.775443 | N19: 10
C20: Yale University | E20: 11 | F20: Cornell University | G20: =$F$2*Data!H16+$F$3*Data!I16+$F$4*Data!J16+$F$5*Data!K16+$F$6*Data!L16+$F$7*Data!M16 -> 4260 | H20: 11 | I20: Cornell University | J20: =MAX(Rankings!$I$2*(101-Data!H16),Rankings!$I$3*(101-Data!I16),Rankings!$I$4*(101-Data!J16),Rankings!$I$5*(101-Data!K16),Rankings!$I$6*(101-Data!L16),Rankings!$I$7*(101-Data!M16)) -> 5288.970663 | K20: 11 | L20: University of California, San Diego | M20: =MAX(Rankings!$L$2*(101-Data!H21),Rankings!$L$3*(101-Data!I21),Rankings!$L$4*(101-Data!J21),Rankings!$L$5*(101-Data!K21),Rankings!$L$6*(101-Data!L21),Rankings!$L$7*(101-Data!M21)) -> 1104.043434 | N20: 11
C21: University of California, Los Angeles | E21: 12 | F21: Washington University in St. Louis | G21: =$F$2*Data!H22+$F$3*Data!I22+$F$4*Data!J22+$F$5*Data!K22+$F$6*Data!L22+$F$7*Data!M22 -> 4000 | H21: 12 | I21: Washington University in St. Louis | J21: =MAX(Rankings!$I$2*(101-Data!H22),Rankings!$I$3*(101-Data!I22),Rankings!$I$4*(101-Data!J22),Rankings!$I$5*(101-Data!K22),Rankings!$I$6*(101-Data!L22),Rankings!$I$7*(101-Data!M22)) -> 5524.438535 | K21: 12 | L21: University College London | M21: =MAX(Rankings!$L$2*(101-Data!H14),Rankings!$L$3*(101-Data!I14),Rankings!$L$4*(101-Data!J14),Rankings!$L$5*(101-Data!K14),Rankings!$L$6*(101-Data!L14),Rankings!$L$7*(101-Data!M14)) -> 1104.043434 | N21: 12
C22: University of Washington | E22: 13 | F22: University of Pennsylvania | G22: =$F$2*Data!H19+$F$3*Data!I19+$F$4*Data!J19+$F$5*Data!K19+$F$6*Data!L19+$F$7*Data!M19 -> 3950 | H22: 13 | I22: University of Pennsylvania | J22: =MAX(Rankings!$I$2*(101-Data!H19),Rankings!$I$3*(101-Data!I19),Rankings!$I$4*(101-Data!J19),Rankings!$I$5*(101-Data!K19),Rankings!$I$6*(101-Data!L19),Rankings!$I$7*(101-Data!M19)) -> 5569.720818 | K22: 13 | L22: Princeton University | M22: =MAX(Rankings!$L$2*(101-Data!H12),Rankings!$L$3*(101-Data!I12),Rankings!$L$4*(101-Data!J12),Rankings!$L$5*(101-Data!K12),Rankings!$L$6*(101-Data!L12),Rankings!$L$7*(101-Data!M12)) -> 1130.870258 | N22: 13
C23: Cornell University | E23: 14 | F23: University of California, San Diego | G23: =$F$2*Data!H17+$F$3*Data!I17+$F$4*Data!J17+$F$5*Data!K17+$F$6*Data!L17+$F$7*Data!M17 -> 3830 | H23: 14 | I23: University of California, San Diego | J23: =MAX(Rankings!$I$2*(101-Data!H17),Rankings!$I$3*(101-Data!I17),Rankings!$I$4*(101-Data!J17),Rankings!$I$5*(101-Data!K17),Rankings!$I$6*(101-Data!L17),Rankings!$I$7*(101-Data!M17)) -> 5678.398297 | K23: 14 | L23: University of Pennsylvania | M23: =MAX(Rankings!$L$2*(101-Data!H18),Rankings!$L$3*(101-Data!I18),Rankings!$L$4*(101-Data!J18),Rankings!$L$5*(101-Data!K18),Rankings!$L$6*(101-Data!L18),Rankings!$L$7*(101-Data!M18)) -> 1159.189213 | N23: 14
C24: University of California, San Diego | E24: 15 | F24: Yale University | G24: =$F$2*Data!H13+$F$3*Data!I13+$F$4*Data!J13+$F$5*Data!K13+$F$6*Data!L13+$F$7*Data!M13 -> 3720 | H24: 15 | I24: Yale University | J24: =MAX(Rankings!$I$2*(101-Data!H13),Rankings!$I$3*(101-Data!I13),Rankings!$I$4*(101-Data!J13),Rankings!$I$5*(101-Data!K13),Rankings!$I$6*(101-Data!L13),Rankings!$I$7*(101-Data!M13)) -> 5778.01932 | K24: 15 | L24: Cornell University | M24: =MAX(Rankings!$L$2*(101-Data!H19),Rankings!$L$3*(101-Data!I19),Rankings!$L$4*(101-Data!J19),Rankings!$L$5*(101-Data!K19),Rankings!$L$6*(101-Data!L19),Rankings!$L$7*(101-Data!M19)) -> 1176.180586 | N24: 15
C25: University College London | E25: 16 | F25: Columbia University | G25: =$F$2*Data!H10+$F$3*Data!I10+$F$4*Data!J10+$F$5*Data!K10+$F$6*Data!L10+$F$7*Data!M10 -> 3430 | H25: 16 | I25: Columbia University | J25: =MAX(Rankings!$I$2*(101-Data!H10),Rankings!$I$3*(101-Data!I10),Rankings!$I$4*(101-Data!J10),Rankings!$I$5*(101-Data!K10),Rankings!$I$6*(101-Data!L10),Rankings!$I$7*(101-Data!M10)) -> 6040.656562 | K25: 16 | L25: California Institute of Technology | M25: =MAX(Rankings!$L$2*(101-Data!H11),Rankings!$L$3*(101-Data!I11),Rankings!$L$4*(101-Data!J11),Rankings!$L$5*(101-Data!K11),Rankings!$L$6*(101-Data!L11),Rankings!$L$7*(101-Data!M11)) -> 1181.042006 | N25: 16
C26: University of Pennsylvania | E26: 17 | F26: University of California, Los Angeles | G26: =$F$2*Data!H14+$F$3*Data!I14+$F$4*Data!J14+$F$5*Data!K14+$F$6*Data!L14+$F$7*Data!M14 -> 3360 | H26: 17 | I26: University of California, Los Angeles | J26: =MAX(Rankings!$I$2*(101-Data!H14),Rankings!$I$3*(101-Data!I14),Rankings!$I$4*(101-Data!J14),Rankings!$I$5*(101-Data!K14),Rankings!$I$6*(101-Data!L14),Rankings!$I$7*(101-Data!M14)) -> 6104.051758 | K26: 17 | L26: University of Oxford | M26: =MAX(Rankings!$L$2*(101-Data!H8),Rankings!$L$3*(101-Data!I8),Rankings!$L$4*(101-Data!J8),Rankings!$L$5*(101-Data!K8),Rankings!$L$6*(101-Data!L8),Rankings!$L$7*(101-Data!M8)) -> 1195.546031 | N26: 17
C27: Johns Hopkins University | E27: 18 | F27: University College London | G27: =$F$2*Data!H18+$F$3*Data!I18+$F$4*Data!J18+$F$5*Data!K18+$F$6*Data!L18+$F$7*Data!M18 -> 3350 | H27: 18 | I27: University College London | J27: =MAX(Rankings!$I$2*(101-Data!H18),Rankings!$I$3*(101-Data!I18),Rankings!$I$4*(101-Data!J18),Rankings!$I$5*(101-Data!K18),Rankings!$I$6*(101-Data!L18),Rankings!$I$7*(101-Data!M18)) -> 6113.108215 | K27: 18 | L27: Swiss Federal Institute of Technology Zurich | M27: =MAX(Rankings!$L$2*(101-Data!H15),Rankings!$L$3*(101-Data!I15),Rankings!$L$4*(101-Data!J15),Rankings!$L$5*(101-Data!K15),Rankings!$L$6*(101-Data!L15),Rankings!$L$7*(101-Data!M15)) -> 1231.669625 | N27: 18
C28: Swiss Federal Institute of Technology Zurich | E28: 19 | F28: University of Washington | G28: =$F$2*Data!H15+$F$3*Data!I15+$F$4*Data!J15+$F$5*Data!K15+$F$6*Data!L15+$F$7*Data!M15 -> 3270 | H28: 19 | I28: University of Washington | J28: =MAX(Rankings!$I$2*(101-Data!H15),Rankings!$I$3*(101-Data!I15),Rankings!$I$4*(101-Data!J15),Rankings!$I$5*(101-Data!K15),Rankings!$I$6*(101-Data!L15),Rankings!$I$7*(101-Data!M15)) -> 6185.559867 | K28: 19 | L28: Johns Hopkins University | M28: =MAX(Rankings!$L$2*(101-Data!H22),Rankings!$L$3*(101-Data!I22),Rankings!$L$4*(101-Data!J22),Rankings!$L$5*(101-Data!K22),Rankings!$L$6*(101-Data!L22),Rankings!$L$7*(101-Data!M22)) -> 1234.316327 | N28: 19
C29: Washington University in St. Louis | E29: 20 | F29: Johns Hopkins University | G29: =$F$2*Data!H20+$F$3*Data!I20+$F$4*Data!J20+$F$5*Data!K20+$F$6*Data!L20+$F$7*Data!M20 -> 3000 | H29: 20 | I29: Johns Hopkins University | J29: =MAX(Rankings!$I$2*(101-Data!H20),Rankings!$I$3*(101-Data!I20),Rankings!$I$4*(101-Data!J20),Rankings!$I$5*(101-Data!K20),Rankings!$I$6*(101-Data!L20),Rankings!$I$7*(101-Data!M20)) -> 6430.084196 | K29: 20 | L29: Washington University in St. Louis | M29: =MAX(Rankings!$L$2*(101-Data!H17),Rankings!$L$3*(101-Data!I17),Rankings!$L$4*(101-Data!J17),Rankings!$L$5*(101-Data!K17),Rankings!$L$6*(101-Data!L17),Rankings!$L$7*(101-Data!M17)) -> 1260.885259 | N29: 20

Sheet Data
F2: The ordinal number as in Shanghai ranking | H2: Alumni | I2: Award | J2: HiCi | K2: N&S | L2: PUB | M2: PCP
F3: 1 | G3: Harvard University | H3: 100 | I3: 100 | J3: 100 | K3: 100 | L3: 100 | M3: 79.5
F4: 2 | G4: Stanford University | H4: 44.5 | I4: 88.5 | J4: 87.3 | K4: 74.4 | L4: 73.7 | M4: 56.8
F5: 3 | G5: University of Cambridge | H5: 81.4 | I5: 95.4 | J5: 54.6 | K5: 57.3 | L5: 69.8 | M5: 59.1
F6: 4 | G6: Massachusetts Institute of Technology (MIT) | H6: 68.7 | I6: 82.3 | J6: 56.7 | K6: 72.4 | L6: 63.5 | M6: 70.8
F7: 5 | G7: University of California, Berkeley | H7: 64.4 | I7: 78.4 | J7: 63.6 | K7: 68.1 | L7: 66.7 | M7: 58.7 | O7: Uniwesities marked in yiellow are Pareto optimal
F8: 6 | G8: Princeton University | H8: 54.4 | I8: 97.9 | J8: 47.6 | K8: 46.6 | L8: 43.3 | M8: 73.5
F9: 7 | G9: University of Oxford | H9: 50.8 | I9: 54.2 | J9: 62.7 | K9: 52.5 | L9: 75.8 | M9: 47.2
F10: 8 | G10: Columbia University | H10: 62.8 | I10: 65.1 | J10: 50 | K10: 53.8 | L10: 70.3 | M10: 34.3
F11: 9 | G11: California Institute of Technology | H11: 50.5 | I11: 65.8 | J11: 39.3 | K11: 56 | L11: 44 | M11: 100
F12: 10 | G12: University of Chicago | H12: 59.2 | I12: 85.1 | J12: 36.2 | K12: 41.1 | L12: 50.3 | M12: 43.1
F13: 11 | G13: Yale University | H13: 47.1 | I13: 49.7 | J13: 48.8 | K13: 57.1 | L13: 61 | M13: 37.2
F14: 12 | G14: University of California, Los Angeles | H14: 29.2 | I14: 46.4 | J14: 63.6 | K14: 44.9 | L14: 70.9 | M14: 33.6
F15: 13 | G15: University of Washington | H15: 20.9 | I15: 37.4 | J15: 56.7 | K15: 51.2 | L15: 74.3 | M15: 32.7
F16: 14 | G16: Cornell University | H16: 43.1 | I16: 49.1 | J16: 43.6 | K16: 46.1 | L16: 61.1 | M16: 42.6
F17: 15 | G17: University of California, San Diego | H17: 19 | I17: 35.1 | J17: 58.8 | K17: 56.4 | L17: 70.9 | M17: 38.3
F18: 16 | G18: University College London | H18: 27.8 | I18: 35.8 | J18: 47.6 | K18: 39.6 | L18: 74.3 | M18: 33.5
F19: 17 | G19: University of Pennsylvania | H19: 31.3 | I19: 33.4 | J19: 50 | K19: 38.7 | L19: 61.1 | M19: 39.5
F20: 18 | G20: Johns Hopkins University | H20: 37.3 | I20: 33.2 | J20: 40.8 | K20: 42.8 | L20: 63.7 | M20: 30
F21: 19 | G21: Swiss Federal Institute of Technology Zurich | H21: 29.2 | I21: 35.1 | J21: 36.2 | K21: 49.5 | L21: 77 | M21: 47.4
F22: 20 | G22: Washington University in St. Louis | H22: 22.7 | I22: 24.6 | J22: 60.7 | K22: 43.3 | L22: 68 | M22: 40

Sheet Work
B2: 1 | C2: 2 | D2: 3 | E2: 4 | F2: 5 | G2: 6
B3: =2+Rankings!M7 -> 13
B4: =CONCATENATE("Data!h",$B$3) -> Data!h13 | C4: =CONCATENATE("Data!i",$B$3) -> Data!i13 | D4: =CONCATENATE("Data!j",$B$3) -> Data!j13 | E4: =CONCATENATE("Data!k",$B$3) -> Data!k13 | F4: =CONCATENATE("Data!l",$B$3) -> Data!l13 | G4: =CONCATENATE("Data!m",$B$3) -> Data!m13
B6: =1/(101-INDIRECT(B4)) -> 0.0185528757 | C6: =1/(101-INDIRECT(C4)) -> 0.01949317739 | D6: 0.01915708812 | E6: 0.02277904328 | F6: 0.025 | G6: 0.01567398119 | H6: =SUM(B6:G6) -> 0.1206561657
B7: =100*B6/$H$6 -> 15.3766495 | C7: =100*C6/$H$6 -> 16.15597287 | D7: 15.87742161 | E7: 18.87930314 | F7: 20.7200352 | G7: 12.99061768 | H7: =SUM(B7:G7) -> 100
B9: =1/(101-Data!H3) -> 1 | C9: =1/(101-Data!I3) -> 1 | D9: =1/(101-Data!J3) -> 1 | E9: =1/(101-Data!K3) -> 1 | F9: =1/(101-Data!L3) -> 1 | G9: =1/(101-Data!M3) -> 0.04651162791
